bitfinex/quotes_ETHUSD_20250319
["timestamp","ask_amount","ask_price","bid_price","bid_amount"]
[1742408546361,0.788,2029.7,2029.4,4.92755]
[1742408546560,2.441348,2030.1,2029.2,0.823]
[1742408546768,5.73027,2029.5,2028.9,4.92867]
[1742408546971,0.8028,2029.5,2029.2,4.92801]
[1742408547269,0.8028,2029.8,2029.1,4.92829]
[1742408547449,4.92724,2029.6,2029.1,4.92819]
[1742408547649,0.55,2029.4,2028.9,4.92858]
[1742408547963,0.55,2029.2,2028.9,4.92856]
[1742408548128,0.55,2029.2,2028.9,9.85715]
[1742408548475,5.47815,2029.2,2028.7,4.92908]
[1742408548760,5.47871,2029.0,2028.6,4.92947]
[1742408548955,0.55,2028.7,2028.3,4.93011]
[1742408549169,0.55,2028.7,2028.4,4.92981]
[1742408549333,0.55,2028.8,2028.6,4.92927]
[1742408549539,0.55,2028.8,2028.7,4.92926]
[1742408549737,0.55,2028.8,2028.6,4.92927]
[1742408549945,4.92939,2028.7,2028.3,4.93012]
[1742408550258,0.9758471,2028.8,2028.5,4.92951]
[1742408550470,0.9758471,2028.8,2028.4,9.85971]
[1742408550761,0.9758471,2028.8,2028.6,4.92929]
[1742408550968,8.6606,2028.9,2028.8,4.92902]
[1742408550969,0.7836,2028.9,2028.8,4.92902]
[1742408551126,0.7554,2029.5,2029.0,4.92844]
[1742408551333,4.92773,2029.4,2028.9,4.92864]
[1742408551635,4.92806,2029.2,2028.8,4.92896]
[1742408551964,0.985586,2029.1,2028.9,4.92874]
[1742408552263,0.55,2028.9,2028.5,7.92969]
[1742408552465,6.23988,2028.9,2028.5,4.92969]
[1742408552666,1.311,2028.9,2028.6,4.9294]
[1742408552964,0.7911,2029.6,2029.5,4.92732]
[1742408553132,22.689,2029.7,2029.3,4.92775]
[1742408553337,2.761579,2029.6,2029.4,4.92733]
[1742408553544,2.761579,2029.6,2029.5,4.92732]
[1742408553761,0.55,2029.6,2029.5,4.92732]
[1742408553960,14.816,2029.7,2029.3,4.92761]
[1742408554171,0.8092,2029.3,2028.6,4.9295]
[1742408554371,0.55,2029.2,2028.4,0.7983]
[1742408554553,0.55,2028.9,2028.1,0.7997]
[1742408554751,6.02664,2028.9,2028.5,4.92966]
[1742408554965,13.89764,2028.9,2028.5,4.9296]
[1742408555169,0.8092,2028.8,2027.6,0.7997]
[1742408555369,0.55,2028.7,2028.6,4.9295]
[1742408555675,8.42,2028.7,2028.0,4.93082]
[1742408555846,5.48024,2028.3,2027.9,4.93115]
[1742408556056,4.93015,2028.4,2028.0,4.93074]
[1742408556057,0.55,2028.4,2028.0,4.93074]
[1742408556351,0.55,2028.4,2028.2,4.93044]
[1742408556664,0.55,2028.4,2027.6,0.7986]
[1742408556665,5.48108,2028.0,2027.6,9.8636]
[1742408556866,0.55,2028.0,2027.3,3.7538]
[1742408557049,0.55,2028.0,2027.3,5.68623]
[1742408557259,4.27367843,2028.0,2027.7,4.93166]
[1742408557796,7.869,2028.2,2028.0,4.93084]
[1742408558080,0.8259,2028.3,2028.2,4.93048]
[1742408558284,1.3759,2028.3,2028.2,4.93048]
[1742408558491,1.37061602,2028.5,2028.3,4.93013]
[1742408558671,9.86026,2028.4,2028.0,4.9308]
[1742408558875,0.55,2028.3,2028.1,4.93055]
[1742408559387,0.55,2028.3,2028.0,4.93091]
[1742408559877,0.55,2028.5,2028.2,4.93048]
[1742408560076,0.7927,2028.6,2027.9,4.93119]
[1742408560382,4.92794,2029.3,2028.8,4.92878]
[1742408560584,4.92924,2028.8,2028.1,0.763]
[1742408560789,4.92853,2029.0,2028.2,4.93048]
[1742408560975,0.55,2028.5,2028.3,4.93013]
[1742408561297,7.866,2028.8,2028.3,4.9302]
[1742408561459,7.866,2028.8,2028.5,4.9296]
[1742408561656,7.866,2028.8,2028.7,4.92926]
[1742408561967,8.6904,2029.4,2029.1,4.92811]
[1742408562288,6.29956118,2029.5,2029.1,4.92827]
[1742408562289,6.29957118,2029.5,2029.1,4.92827]
[1742408562489,0.55,2029.3,2029.0,4.92847]
[1742408562697,4.92759,2029.4,2029.0,4.92847]
[1742408562896,1.37212118,2029.5,2028.9,4.92877]
[1742408563096,1.37212118,2029.5,2028.5,3.8003]
[1742408563097,1.37212118,2029.5,2029.0,4.92853]
[1742408563298,1.75774375,2029.5,2029.2,4.92784]
[1742408563456,14.819,2029.6,2029.4,4.92756]
[1742408563657,8.6894,2029.7,2029.5,4.92732]
[1742408563892,7.864,2029.7,2029.4,4.92751]
[1742408564191,7.864,2029.7,2029.4,9.85488]
[1742408564368,7.864,2029.7,2029.6,4.92707]
[1742408564554,7.864,2029.7,2029.5,4.92731]
[1742408564761,0.55,2029.6,2029.1,5.73654]
[1742408564957,0.55,2029.6,2029.3,4.9277]
[1742408565358,0.55,2029.6,2029.3,9.85537]
[1742408565670,0.55,2029.6,2029.3,4.92759]
[1742408566012,0.55,2029.6,2029.4,4.92755]
[1742408566201,0.55,2029.6,2029.1,0.8084]
[1742408566403,3.0,2029.9,2029.7,4.92683]
[1742408566695,8.73086,2030.0,2029.6,4.92698]
[1742408566855,0.8292,2030.3,2029.4,0.04927005]
[1742408567193,4.92569,2030.2,2029.8,9.85305]
[1742408567397,4.92569,2030.2,2029.8,4.92646]
[1742408567605,0.8292,2030.3,2030.1,4.92569]
[1742408567763,4.92574,2030.2,2029.8,4.92655]
[1742408567964,0.55,2030.1,2029.8,4.9264]
[1742408568163,0.55,2030.1,2029.3,4.92765]
[1742408568364,5.47707,2029.7,2029.2,4.92793]
[1742408568673,0.55,2029.5,2029.2,4.92787]
[1742408568874,0.55,2029.5,2029.3,4.92758]
[1742408569285,0.55,2029.5,2029.4,4.92756]
[1742408569702,0.55,2029.7,2029.6,4.92707]
[1742408569911,0.55,2029.8,2029.6,4.92707]
[1742408570122,7.857,2029.9,2029.7,4.92683]
[1742408570277,5.68268,2030.1,2029.7,4.92683]
[1742408570463,7.82891,2030.1,2029.7,4.92683]
[1742408570811,0.55,2030.0,2029.7,4.92683]
[1742408571302,0.7747,2030.5,2029.8,4.97569751]
[1742408571461,15.5927,2030.8,2030.4,4.925]
[1742408571807,15.5927,2030.8,2030.3,4.92524]
[1742408571808,9.42629428,2030.7,2030.3,4.92524]
[1742408571964,9.42629428,2030.7,2030.0,8.68608]
[1742408572319,15.5927,2030.8,2030.3,4.92518]
[1742408572320,19.74228,2030.8,2030.3,4.92518]
[1742408572502,19.74228,2030.8,2029.7,0.8048]
[1742408572503,0.55,2030.4,2029.7,0.8048]
[1742408572662,0.55,2030.4,2030.0,4.9261]
[1742408572663,5.47517,2030.4,2030.0,4.9261]
[1742408572864,0.55,2030.4,2030.1,4.92586]
[1742408573160,0.55,2030.4,2030.0,4.9261]
[1742408573161,3.0,2030.7,2029.8,4.92659]
[1742408573399,8.52721292,2030.7,2030.2,4.92551]
[1742408573696,4.92475,2030.6,2030.2,4.92551]
[1742408573875,8.52705292,2030.7,2030.2,4.92544]
[1742408574078,3.60259292,2030.7,2030.3,4.92523]
[1742408574411,4.92426,2030.8,2030.4,4.9251]
[1742408574709,4.92392,2030.9,2030.5,4.92475]
[1742408575065,0.55,2030.8,2030.5,4.92475]
[1742408575491,4.92392,2030.9,2030.5,4.92475]
[1742408575813,5.69831,2031.2,2030.8,4.92404]
[1742408575986,4.92372,2031.0,2030.4,4.92493]
[1742408576189,5.47401,2030.9,2030.5,4.92474]
[1742408576388,0.55,2030.9,2030.5,4.92468]
[1742408576595,1.1843545,2030.9,2030.2,4.92561]
[1742408576787,0.55,2030.6,2030.4,4.92495]
[1742408577181,0.55,2030.6,2030.3,4.92531]
[1742408577385,0.55,2030.6,2030.3,4.92537]
[1742408577583,0.55,2030.7,2030.4,4.92504]
[1742408577967,5.5582845,2030.9,2030.5,4.92483]
[1742408578168,5.793275,2031.1,2030.3,4.92536]
[1742408578373,4.92371,2031.0,2030.6,4.92445]
[1742408578606,0.55,2030.9,2030.3,4.92536]
[1742408578807,0.869825,2031.1,2030.8,4.92405]
[1742408579118,7.843,2031.3,2030.5,5.74694]
[1742408579331,4.93287,2031.4,2030.9,4.92387]
[1742408579499,4.92312,2031.3,2030.9,4.92379]
[1742408579699,4.92337,2031.2,2030.8,4.92411]
[1742408579896,4.92312,2031.3,2030.9,4.92383]
[1742408580088,4.9238,2031.0,2030.6,4.92455]
[1742408580423,0.55,2030.9,2030.6,4.92454]
[1742408580625,0.55,2030.9,2030.5,4.92472]
[1742408580826,0.55,2030.6,2030.3,4.9253]
[1742408580991,0.55,2030.6,2030.3,4.92521]
[1742408581325,0.55,2030.7,2030.4,4.92505]
[1742408581524,0.55,2030.5,2030.2,4.9256]
[1742408581827,5.47596,2030.1,2029.7,4.92675]
[1742408582033,0.55,2030.1,2029.4,4.9275]
[1742408582324,3.0,2030.6,2029.5,4.92729]
[1742408582325,0.55,2029.7,2029.5,4.92729]
[1742408582626,0.55,2029.9,2029.4,4.92756]
[1742408582828,0.55,2029.9,2029.7,4.92682]
[1742408583023,6.599797,2029.9,2029.5,4.92723]
[1742408583187,0.55,2029.7,2029.4,4.92749]
[1742408583391,5.47668,2029.8,2029.4,4.92734]
[1742408583642,0.55,2029.8,2029.4,4.92734]
[1742408583846,5.47659,2029.8,2029.4,4.92734]
[1742408584330,0.55,2029.6,2029.3,4.92777]
[1742408585043,0.55,2029.6,2028.9,5.68439]
[1742408585222,0.55,2029.6,2029.3,4.9277]
[1742408585743,0.55,2029.6,2029.2,7.928]
[1742408585905,0.55,2029.6,2029.3,4.92774]
[1742408586109,5.47717,2029.6,2029.2,7.928]
[1742408586313,0.55,2029.7,2029.4,4.92754]
[1742408586552,0.55,2029.7,2029.4,4.92746]
[1742408587149,0.8311,2030.0,2029.5,3.0]
[1742408587365,0.7716,2030.4,2030.0,4.92589]
[1742408587521,4.92482,2030.6,2030.1,4.92569]
[1742408587847,15.5816,2030.7,2030.3,4.92521]
[1742408588151,4.9251,2030.5,2030.0,4.9261]
[1742408588361,4.92577,2030.2,2029.7,12.75871]
[1742408588532,4.92597,2030.1,2029.7,4.92671]
[1742408588716,0.8123,2030.2,2029.7,4.92663]
[1742408588921,5.73796,2030.2,2029.8,4.92646]
[1742408589425,4.92596,2030.1,2029.7,4.92674]
[1742408589729,5.73792,2030.2,2029.8,4.92646]
[1742408589916,4.92535,2030.4,2030.0,4.92607]
[1742408590111,4.92532,2030.4,2030.0,4.926]
[1742408590342,0.7558,2030.6,2029.7,1.367743]
[1742408590538,14.81,2030.7,2030.1,0.7637]
[1742408590740,0.7839,2031.2,2030.8,4.92416]
[1742408590953,1.37393338,2031.3,2031.0,4.9236]
[1742408591171,1.37393338,2031.3,2031.2,7.92319]
[1742408591362,1.37393338,2031.3,2031.2,8.68689]
[1742408591671,3.38e-06,2031.4,2031.3,7.92295]
[1742408592684,3.38e-06,2031.4,2031.3,4.92295]
[1742408592836,3.38e-06,2031.4,2031.3,8.983934]
[1742408594180,3.38e-06,2031.4,2031.3,7.92295]
[1742408594342,3.38e-06,2031.4,2031.3,3.0]
[1742408594542,3.38e-06,2031.4,2030.9,0.7852]
[1742408594543,4.92285338,2031.4,2030.9,5.70888]
[1742408594876,3.38e-06,2031.4,2031.1,4.92331]
[1742408595046,3.38e-06,2031.4,2031.0,4.92354]
[1742408595241,3.38e-06,2031.4,2031.0,4.92353]
[1742408595439,4.92281338,2031.4,2031.0,4.92358]
[1742408595676,3.38e-06,2031.4,2031.3,7.92295]
[1742408596848,3.38e-06,2031.4,2031.3,16.29295]
[1742408597477,3.38e-06,2031.4,2031.3,15.74295]
[1742408597677,3.38e-06,2031.4,2031.3,3.0]
[1742408597880,3.38e-06,2031.4,2031.0,4.92345]
[1742408598072,3.38e-06,2031.4,2031.0,4.92367]
[1742408598386,3.38e-06,2031.4,2031.3,4.92295]
[1742408598773,3.38e-06,2031.4,2031.1,3.0]
[1742408598977,3.38e-06,2031.4,2030.6,3.28272725]
[1742408598978,0.777,2031.3,2030.7,4.92429]
[1742408599153,5.7001,2031.3,2030.9,4.9239]
[1742408599349,4.92378,2031.0,2030.5,4.92466]
[1742408599544,0.777,2031.3,2030.2,5.68418]
[1742408599545,5.69996,2031.3,2030.7,4.92428]
[1742408599748,5.70001,2031.3,2030.6,3.0]
[1742408599983,4.9232,2031.2,2030.6,7.92455]
[1742408600352,5.70013,2031.3,2030.9,4.92383]
[1742408600602,5.69996,2031.3,2030.6,3.0]
[1742408600798,4.92418,2030.8,2030.4,4.9251]
[1742408600993,4.92393,2030.9,2030.5,4.92489]
[1742408601285,4.92418,2030.8,2030.3,4.92537]
[1742408601489,4.92421,2030.8,2030.1,7.815]
[1742408601652,4.92433,2030.8,2030.4,4.92507]
[1742408601991,4.92425,2030.8,2030.4,9.85007]
[1742408602287,4.92425,2030.8,2030.4,4.925]
[1742408602651,0.7954,2031.0,2030.3,4.92538]
[1742408602960,4.92392,2030.9,2030.2,4.92552]
[1742408603163,0.571932,2030.8,2030.4,4.92491]
[1742408603365,7.812,2030.9,2030.1,3.0]
[1742408603689,12.73601,2030.9,2030.4,9.84983]
[1742408603864,4.92459,2030.7,2030.2,4.92549]
[1742408604191,4.92429,2030.8,2030.3,4.9252]
[1742408604786,4.92429,2030.8,2030.4,4.92502]
[1742408604948,7.812,2030.9,2030.5,9.84947]
[1742408605148,0.7954,2031.0,2030.7,4.92422]
[1742408605449,0.7954,2031.0,2030.7,4.92429]
[1742408605760,5.71065,2031.3,2030.9,4.92392]
[1742408605958,4.92322,2031.2,2030.8,4.92399]
[1742408606156,4.92456,2030.7,2030.1,0.7773]
[1742408606361,4.92482,2030.6,2030.1,0.7773]
[1742408606560,0.7805,2030.7,2030.1,3.0]
[1742408606798,4.92514,2030.4,2030.0,4.92592]
[1742408606952,4.92514,2030.4,2030.1,3.0]
[1742408607349,9.84997,2030.5,2030.1,3.0]
[1742408607675,4.92489,2030.5,2030.1,3.0]
[1742408607884,4.92489,2030.5,2030.1,7.92576]
[1742408608077,5.70508,2030.7,2030.1,1.285168]
[1742408608391,4.92514,2030.4,2029.9,4.92617]
[1742408608593,4.92588,2030.1,2029.6,4.92707]
[1742408608777,4.92615,2030.0,2029.6,4.92707]
[1742408608984,4.92615,2030.0,2029.6,4.92692]
[1742408609277,1.067172,2030.0,2029.4,4.92735]
[1742408609483,4.92656,2029.9,2029.4,4.92735]
[1742408609682,4.92649,2029.9,2029.5,3.0]
[1742408609992,1.067172,2030.0,2029.6,4.92693]
[1742408610190,0.8195,2030.2,2029.5,3.0]
[1742408610392,0.8195,2030.2,2029.2,0.8148]
[1742408610393,14.805,2030.1,2029.2,0.8148]
[1742408610602,14.805,2030.1,2029.1,4.92828]
[1742408610603,4.92735,2029.5,2029.1,4.92828]
[1742408610763,9.85458,2029.6,2029.1,4.92828]
[1742408610978,9.85458,2029.6,2029.1,7.92828]
[1742408611359,4.92737,2029.5,2029.1,3.0]
[1742408611593,4.92737,2029.5,2029.1,7.92823]
[1742408612019,5.912835,2029.5,2029.1,3.0]
[1742408612225,4.92737,2029.5,2029.1,3.0]
[1742408612503,4.92783,2029.3,2028.9,4.92877]
[1742408612791,4.92756,2029.4,2029.0,3.0]
[1742408613554,4.92709,2029.6,2029.1,4.92814]
[1742408613761,4.9275,2029.5,2029.0,4.92849]
[1742408613992,1.847237,2029.6,2028.8,4.92897]
[1742408614176,1.847237,2029.6,2028.7,7.92902]
[1742408614177,5.73921,2029.2,2028.7,12.85811]
[1742408614562,5.73915,2029.2,2028.8,4.92899]
[1742408614757,4.92846,2029.1,2028.6,0.827]
[1742408614963,0.811,2029.2,2028.6,0.827]
[1742408615202,0.811,2029.2,2029.0,4.92834]
[1742408615503,12.72993,2029.3,2028.9,4.92874]
[1742408615799,0.55,2029.8,2028.9,4.92874]
[1742408615800,0.7756,2029.8,2029.5,4.92718]
[1742408615956,22.606,2030.1,2029.6,4.9269]
[1742408616181,15.5806,2030.1,2029.4,7.92756]
[1742408616387,20.50647,2030.1,2029.6,4.92697]
[1742408616586,4.92625,2030.0,2029.6,9.85387]
[1742408616800,20.50647,2030.1,2029.7,4.92683]
[1742408617012,20.50647,2030.1,2029.1,3.7556]
[1742408617013,18.904009,2030.1,2029.1,3.7556]
[1742408617215,18.904009,2030.1,2029.2,4.92804]
[1742408617439,4.9264,2029.9,2029.4,4.92745]
[1742408617629,0.7756,2030.1,2029.9,4.92617]
[1742408617786,14.811,2030.7,2029.7,4.92663]
[1742408617787,4.92538,2030.3,2029.7,4.92663]
[1742408618221,4.92538,2030.3,2029.8,4.92641]
[1742408618532,4.92593,2030.1,2029.7,4.92681]
[1742408618715,9.8529,2029.9,2029.5,7.92707]
[1742408618924,7.8,2030.1,2029.8,4.92659]
[1742408619107,0.8147,2030.4,2030.1,4.92575]
[1742408619515,0.8147,2030.4,2029.7,4.92671]
[1742408619742,4.92502,2030.5,2030.0,4.92588]
[1742408619908,4.92478,2030.6,2030.1,4.92571]
[1742408620104,4.92554,2030.3,2029.9,4.9262]
[1742408620324,4.92554,2030.3,2029.8,7.92656]
[1742408620636,0.8136,2030.2,2029.9,4.92611]
[1742408620821,0.8136,2030.5,2030.2,4.92557]
[1742408621132,0.8136,2030.5,2029.8,4.92653]
[1742408621133,14.811,2030.7,2030.4,4.92513]
[1742408621344,14.811,2030.7,2030.3,4.92537]
[1742408621345,14.811,2030.7,2030.3,4.92522]
[1742408621546,19.73559,2030.7,2030.3,4.92522]
[1742408621857,4.92492,2030.5,2030.1,7.92581]
[1742408622049,19.73543,2030.7,2030.2,4.9256]
[1742408622200,23.062371,2030.7,2030.3,4.92536]
[1742408622550,4.92476,2030.6,2030.2,4.9256]
[1742408622713,4.92495,2030.5,2030.1,7.92583]
[1742408622912,18.137941,2030.7,2029.5,5.68632]
[1742408622913,8.5577,2030.4,2029.5,5.68632]
[1742408623099,4.92627,2030.0,2029.5,9.85452]
[1742408623304,4.92635,2029.9,2029.5,9.85441]
[1742408623503,0.985213,2030.0,2029.5,3.0]
[1742408623731,4.9262,2030.0,2029.6,4.92706]
[1742408623935,4.92651,2029.9,2029.5,3.0]
[1742408624121,0.8228,2029.8,2029.5,3.0]
[1742408624335,4.92693,2029.7,2029.5,3.0]
[1742408624647,5.74944,2029.8,2029.3,4.92776]
[1742408624853,7.596319,2029.8,2029.3,4.92776]
[1742408625050,2.669679,2029.8,2029.4,4.92756]
[1742408625215,7.596409,2029.8,2029.3,4.9278]
[1742408625408,4.92698,2029.7,2029.3,4.9278]
[1742408625604,4.92708,2029.6,2029.2,4.92803]
[1742408626350,4.92733,2029.5,2029.1,7.92828]
[1742408626712,4.92783,2029.3,2028.8,4.92878]
[1742408626953,4.92783,2029.3,2028.9,4.92874]
[1742408627157,4.92783,2029.3,2029.0,3.0]
[1742408627650,5.73993,2029.3,2029.0,3.0]
[1742408628254,0.8121,2029.3,2029.0,3.0]
[1742408628411,5.74,2029.3,2029.0,3.0]
[1742408628749,4.92871,2029.0,2028.5,4.92958]
[1742408628951,9.85742,2029.0,2028.5,4.92958]
[1742408629112,4.92871,2029.0,2028.5,4.92958]
[1742408629316,4.92901,2028.9,2028.4,3.0]
[1742408629552,2.657856,2029.3,2028.4,4.92983]
[1742408629725,4.92903,2028.8,2028.4,4.92983]
[1742408630131,4.92903,2028.8,2028.5,3.0]
[1742408630626,12.71695,2028.9,2028.2,4.93047]
[1742408630627,5.73309,2028.7,2028.2,4.93047]
[1742408630855,4.92966,2028.6,2028.0,0.8268]
[1742408631061,4.92966,2028.6,2028.2,3.0]
[1742408631424,4.92981,2028.5,2028.2,3.0]
[1742408631853,5.733,2028.7,2028.2,3.0]
[1742408632160,8.5822,2029.0,2028.6,4.92941]
[1742408632463,8.5822,2029.0,2028.6,4.9294]
[1742408632464,13.51077,2029.0,2028.6,4.9294]
[1742408632833,0.7962,2029.0,2028.6,4.92931]
[1742408633034,14.814,2029.1,2028.8,4.92889]
[1742408633229,14.814,2029.1,2028.9,4.9286]
[1742408633555,19.74248,2029.1,2028.6,4.92927]
[1742408633754,19.74248,2029.1,2028.7,4.92926]
[1742408634054,19.74248,2029.1,2028.6,4.92927]
[1742408634254,14.814,2029.1,2028.7,4.92917]
[1742408634453,14.814,2029.1,2028.7,4.92904]
[1742408634656,12.71149,2029.5,2029.0,4.92837]
[1742408634965,4.92782,2029.3,2028.8,4.92882]
[1742408635142,4.9276,2029.4,2029.0,4.92852]
[1742408635448,12.71136,2029.5,2029.0,4.92836]
[1742408635753,7.784,2029.5,2029.1,4.92823]
[1742408635954,4.9276,2029.4,2029.0,4.92852]
[1742408636163,13.9404548,2029.5,2029.0,4.92852]
[1742408636358,4.92794,2029.3,2028.9,4.92877]
[1742408636563,4.92756,2029.4,2028.7,7.92926]
[1742408636931,9.85525,2029.4,2028.9,4.92857]
[1742408637131,9.85525,2029.4,2028.9,9.85716]
[1742408637439,7.784,2029.5,2029.2,4.92797]
[1742408637634,14.816,2029.8,2029.0,3.7831]
[1742408637861,4.92695,2029.7,2029.2,4.92782]
[1742408638259,4.92718,2029.6,2029.1,7.92828]
[1742408638475,4.92697,2029.7,2029.1,3.0]
[1742408638762,2.833237,2029.7,2029.1,3.0]
[1742408638967,4.92742,2029.5,2029.1,3.0]
[1742408639551,4.92707,2029.6,2029.1,7.92826]
[1742408639758,9.85434,2029.6,2029.1,7.92826]
[1742408639935,2.833237,2029.7,2028.8,0.7761]
[1742408639936,4.92766,2029.4,2028.9,7.92857]
[1742408640266,4.92737,2029.5,2029.1,3.0]
[1742408640444,4.92737,2029.5,2029.1,7.92828]
[1742408640647,4.92737,2029.5,2029.1,3.0]
[1742408640839,2.833237,2029.7,2028.9,4.92873]
[1742408640840,4.9279,2029.3,2028.9,4.92873]
[1742408641053,0.8094,2029.3,2028.9,4.92873]
[1742408641254,1.875881,2029.3,2028.5,0.7892]
[1742408641454,4.92814,2029.2,2028.8,3.0]
[1742408641661,4.9284,2029.1,2028.8,3.0]
[1742408641868,4.92873,2029.0,2028.5,5.71886]
[1742408642062,4.92873,2029.0,2028.6,3.0]
[1742408642276,4.92841,2029.1,2028.6,3.0]
[1742408642485,4.92863,2029.0,2028.6,4.92939]
[1742408642636,4.92863,2029.0,2028.6,7.92939]
[1742408642970,4.92811,2029.2,2028.7,4.92909]
[1742408643158,7.774,2029.5,2028.7,3.04928815]
[1742408643358,4.92763,2029.4,2028.9,4.92867]
[1742408643538,4.92763,2029.4,2029.0,3.0]
[1742408644374,1.845125,2029.4,2028.5,0.7892]
[1742408644571,4.92863,2029.0,2028.6,3.0]
[1742408644742,9.85737,2029.0,2028.6,3.0]
[1742408645070,4.92863,2029.0,2028.6,7.92948]
[1742408645570,7.772,2029.0,2028.2,0.8159]
[1742408645778,4.92975,2028.5,2027.9,0.8159]
[1742408645947,4.92902,2028.8,2027.6,4.93174]
[1742408645948,4.9308,2028.1,2027.6,5.69164]
[1742408646160,4.93048,2028.2,2027.6,5.69169]
[1742408646346,4.93084,2028.1,2027.7,3.0]
[1742408646680,4.93109,2028.0,2027.5,4.93193]
[1742408646870,5.68184,2028.1,2027.5,4.93193]
[1742408647073,5.68184,2028.1,2027.6,4.93179]
[1742408647251,4.93054,2028.2,2027.8,4.93131]
[1742408647453,4.93024,2028.3,2027.9,4.93114]
[1742408647671,8.52,2028.4,2028.0,4.93073]
[1742408647834,4.93058,2028.2,2027.8,0.768]
[1742408648176,4.93058,2028.2,2027.8,3.0]
[1742408648675,4.93025,2028.3,2027.9,4.93108]
[1742408648970,4.93111,2028.0,2027.6,4.93176]
[1742408649352,4.93123,2027.9,2027.5,5.70017]
[1742408649672,4.93123,2027.9,2027.2,0.7699]
[1742408649878,4.93123,2027.9,2027.4,4.93231]
[1742408650035,4.93123,2027.9,2027.5,4.93203]
[1742408650238,6.768455,2028.3,2027.5,1.286434]
[1742408650451,4.93028,2028.3,2027.9,4.93101]
[1742408650652,0.751,2028.4,2028.1,7.9307]
[1742408650890,7.767,2028.5,2028.1,3.0]
[1742408651064,12.69694,2028.5,2028.1,3.0]
[1742408651556,12.69693,2028.5,2028.1,7.9307]
[1742408651760,7.767,2028.5,2028.2,4.93035]
[1742408652070,25.44138,2029.0,2028.5,4.92965]
[1742408652380,4.92887,2028.9,2028.5,3.0]
[1742408652676,20.51264,2029.0,2028.2,0.8231]
[1742408652677,4.92905,2028.8,2028.2,0.8231]
[1742408652883,20.51283,2029.0,2028.4,3.0]
[1742408653167,20.51283,2029.0,2028.5,4.92955]
[1742408653349,25.44154,2029.0,2028.6,4.92948]
[1742408653551,4.92889,2028.9,2028.5,4.92955]
[1742408653778,4.92904,2028.8,2028.5,3.0]
[1742408653954,20.5128,2029.0,2028.6,4.92936]
[1742408654155,14.816,2029.0,2028.8,4.92887]
[1742408654475,5.69721,2029.3,2028.8,4.92887]
[1742408654476,0.7694,2029.3,2028.9,4.92868]
[1742408654845,5.69722,2029.3,2028.9,4.92868]
[1742408655047,5.69722,2029.3,2028.9,3.0]
[1742408655276,0.7694,2029.3,2028.8,3.0]
[1742408655440,0.7694,2029.3,2029.0,4.92835]
[1742408655647,0.7694,2029.3,2028.9,4.92863]
[1742408655845,0.7694,2029.3,2028.9,4.92865]
[1742408656080,7.762,2029.5,2028.9,2.074567]
[1742408656284,20.58012,2029.6,2029.2,4.92802]
[1742408656469,4.92746,2029.5,2029.1,4.92808]
[1742408657349,15.653,2029.6,2029.0,0.04927882]
[1742408657652,14.821,2029.6,2029.3,4.92769]
[1742408657880,19.74808,2029.6,2029.2,4.92804]
[1742408658044,14.821,2029.6,2029.2,4.92798]
[1742408660279,0.7831,2029.4,2028.6,0.774]
[1742408660485,4.92818,2029.2,2028.8,3.0]
[1742408660659,5.71089,2029.4,2028.6,0.774]
[1742408660859,4.92799,2029.3,2028.6,0.774]
[1742408661162,0.7831,2029.4,2028.9,7.92869]
[1742408661402,24.67526,2029.6,2029.0,4.92835]
[1742408661583,19.74808,2029.6,2029.1,9.85645]
[1742408661763,14.821,2029.6,2029.2,4.92804]
[1742408661965,19.74809,2029.6,2029.1,4.92817]
[1742408662312,14.821,2029.6,2029.2,4.92793]
[1742408662657,14.821,2029.6,2029.1,5.74069]
[1742408662864,4.9277,2029.4,2029.1,3.0]
[1742408663063,4.92801,2029.3,2028.8,8.71423]
[1742408663309,22.579408,2029.6,2028.8,8.71423]
[1742408663466,4.92792,2029.3,2028.8,3.7854]
[1742408663859,14.821,2029.6,2029.1,4.92806]
[1742408664071,14.821,2029.6,2029.2,4.9279]
[1742408664287,14.821,2029.6,2029.2,4.92801]
[1742408664486,19.74809,2029.6,2029.1,4.92829]
[1742408664681,19.74809,2029.6,2029.1,9.85658]
[1742408664893,19.74809,2029.6,2029.2,3.0]
[1742408665094,4.92732,2029.5,2029.2,3.0]
[1742408665684,19.74814,2029.6,2029.1,3.0]
[1742408665885,19.74814,2029.6,2029.2,4.92804]
[1742408666064,19.74814,2029.6,2029.0,6.31192867]
[1742408666065,14.821,2029.6,2029.0,6.31192867]
[1742408666263,5.67636,2030.0,2029.5,4.92715]
[1742408666471,0.7502,2030.0,2029.6,4.92693]
[1742408666670,14.817,2030.3,2029.9,4.92614]
[1742408667066,14.817,2030.3,2030.0,4.92607]
[1742408667410,14.817,2030.3,2029.9,4.92614]
[1742408667595,14.817,2030.3,2029.7,8.73077]
[1742408667923,14.817,2030.3,2030.1,7.92584]
[1742408668073,5.72142,2030.6,2030.1,7.92584]
[1742408668276,20.53715,2030.9,2030.4,4.92498]
[1742408668569,4.92425,2030.8,2030.4,0.8157]
[1742408668892,15.6131,2030.9,2030.4,0.8157]
[1742408669072,14.817,2030.9,2030.5,4.92486]